bitfinex-derivatives/quotes_SOLF0:USTF0_20241005
["timestamp","ask_amount","ask_price","bid_price","bid_amount"]
[1728147310971,14.3155,142.22,142.18,3.5163]
[1728147312378,10.8,142.22,142.18,3.5163]
[1728147312574,3.5157,142.21,142.19,4.9]
[1728147313685,14.3157,142.21,142.19,4.9]
[1728147319985,14.3156,142.22,142.19,4.9]
[1728147320389,3.5156,142.22,142.19,4.9]
[1728147321202,14.3158,142.21,142.19,4.9]
[1728147321701,10.8,142.21,142.17,4.9]
[1728147322293,3.516,142.2,142.17,4.9]
[1728147322488,14.316,142.2,142.16,3.5168]
[1728147322797,10.8,142.18,142.17,4.9]
[1728147322993,10.8,142.18,142.16,4.9]
[1728147324294,14.3166,142.18,142.16,4.9]
[1728147326496,3.5167,142.17,142.16,4.9]
[1728147327093,14.3166,142.18,142.16,4.9]
[1728147328191,3.5167,142.17,142.16,4.9]
[1728147329198,3.5167,142.17,142.14,3.5174]
[1728147329399,3.5167,142.17,142.15,4.9]
[1728147331102,14.3165,142.18,142.15,4.9]
[1728147331602,14.3165,142.18,142.15,8.4171]
[1728147334412,3.5163,142.19,142.16,3.5169]
[1728147334716,10.8,142.21,142.16,10.8]
[1728147334910,3.5161,142.2,142.17,3.5167]
[1728147335608,3.5161,142.2,142.16,10.8]
[1728147335803,3.5161,142.2,142.16,14.3168]
[1728147337110,3.5161,142.2,142.16,3.5168]
[1728147337610,14.3162,142.19,142.15,19.2171]
[1728147338403,14.3162,142.19,142.15,8.4171]
[1728147339913,10.8,142.18,142.15,8.4171]
[1728147340210,14.3165,142.18,142.15,8.3971]
[1728147341713,3.5172,142.15,142.13,0.12502]
[1728147341907,10.8,142.17,142.13,5.00502]
[1728147342913,3.5171,142.16,142.13,8.52252]
[1728147343804,14.3168,142.17,142.13,8.52252]
[1728147348410,3.5169,142.16,142.13,8.52252]
[1728147348914,3.5169,142.16,142.13,0.12502]
[1728147349104,3.5169,142.16,142.13,5.00502]
[1728147349608,3.5169,142.16,142.13,0.12502]
[1728147349808,3.5169,142.16,142.13,5.00502]
[1728147350700,3.5169,142.16,142.13,8.52272]
[1728147351109,10.8,142.17,142.13,8.52272]
[1728147351311,3.5169,142.17,142.13,8.52272]
[1728147351712,3.5172,142.16,142.13,5.00502]
[1728147352309,3.57237703,142.21,142.13,5.00502]
[1728147352310,3.5172,142.15,142.13,5.00502]
[1728147353308,3.5172,142.15,142.13,0.12502]
[1728147353309,3.5174,142.14,142.13,0.12502]
[1728147362333,4.2168,142.22,142.13,15.80502]
[1728147362334,3.5169,142.17,142.13,15.80502]
[1728147362631,3.5169,142.17,142.14,10.8]
[1728147363932,10.8,142.19,142.14,10.8]
[1728147364523,4.2168,142.22,142.14,10.8]
[1728147364524,10.8,142.18,142.14,10.8]
[1728147364829,3.5167,142.17,142.14,10.8]
[1728147366132,3.5167,142.17,142.14,14.3174]
[1728147366527,3.5167,142.17,142.14,3.5174]
[1728147374038,14.3166,142.18,142.15,3.5171]
[1728147374238,14.3166,142.18,142.16,4.88]
[1728147374848,10.8,142.18,142.16,4.88]
[1728147375050,10.8,142.18,142.16,8.3969]
[1728147375248,3.5163,142.19,142.16,8.3969]
[1728147376151,3.5163,142.19,142.16,4.88]
[1728147376345,10.8,142.18,142.16,4.88]
[1728147376546,14.3165,142.18,142.16,4.88]
[1728147380551,3.5167,142.17,142.16,4.88]
[1728147381452,3.5174,142.14,142.13,0.12502]
[1728147381950,10.8,142.16,142.13,0.12502]
[1728147382155,15.7288,142.17,142.13,5.00502]
[1728147382357,12.2121,142.17,142.13,5.00502]
[1728147382553,10.8,142.17,142.13,5.00502]
[1728147382762,2.7694,142.22,142.15,10.8]
[1728147383050,10.8,142.19,142.16,4.88]
[1728147383250,2.7694,142.22,142.16,4.88]
[1728147383251,3.5167,142.17,142.16,4.88]
[1728147383642,10.8,142.18,142.16,4.88]
[1728147383851,14.3165,142.18,142.16,4.88]
[1728147384462,7.6494,142.22,142.16,15.68]
[1728147384463,3.5159,142.21,142.16,15.68]
[1728147384760,14.3159,142.21,142.16,15.68]
[1728147385250,14.3159,142.21,142.17,3.5165]
[1728147397774,10.8,142.2,142.17,3.5165]
[1728147398467,14.316,142.2,142.16,4.88]
[1728147398768,14.316,142.2,142.16,8.3969]
[1728147400367,3.516,142.2,142.17,3.5167]
[1728147400568,14.316,142.2,142.17,3.5167]
[1728147407666,3.516,142.2,142.17,3.5167]
[1728147407863,10.8,142.21,142.17,3.5167]
[1728147408066,14.3158,142.21,142.17,3.5167]
[1728147408271,3.5158,142.21,142.17,14.3167]
[1728147409670,3.5158,142.21,142.17,10.8]
[1728147409878,3.5155,142.22,142.19,3.5161]
[1728147410178,10.8,142.23,142.19,8.3961]
[1728147410381,14.3154,142.23,142.19,8.3961]
[1728147413779,10.8,142.23,142.19,8.3961]
[1728147413984,3.5155,142.22,142.19,8.3961]
[1728147415780,3.5158,142.21,142.19,4.88]
[1728147416587,3.5159,142.2,142.19,4.88]
[1728147417506,3.5158,142.21,142.19,4.88]
[1728147418096,14.3155,142.22,142.19,4.88]
[1728147418485,1.4121,142.24,142.19,19.196]
[1728147418696,3.5153,142.23,142.19,15.68]
[1728147420189,3.5153,142.23,142.2,3.5159]
[1728147421191,14.315,142.24,142.2,3.5159]
[1728147421896,0.12502,142.25,142.24,3.515]
[1728147422184,12.2429,142.34,142.3,10.8]
[1728147422396,15.7554,142.34,142.3,19.1935]
[1728147422693,15.7554,142.34,142.3,15.68]
[1728147423192,3.5128,142.33,142.3,4.88]
[1728147423887,12.2429,142.34,142.3,4.88]
[1728147423888,14.3132,142.32,142.3,4.88]
[1728147424191,10.8,142.32,142.3,5.02]
[1728147424984,3.63832,142.31,142.27,3.5142]
[1728147425177,10.92502,142.31,142.28,5.02]
[1728147426185,10.8,142.29,142.26,3.5144]
[1728147426382,10.8,142.28,142.27,5.02]
[1728147426989,10.8,142.28,142.25,3.5146]
[1728147427199,10.8,142.28,142.26,5.02]
[1728147428394,10.8,142.27,142.26,5.02]
[1728147429993,14.3142,142.27,142.26,5.02]
[1728147431093,14.3142,142.27,142.26,2.8424]
[1728147432513,14.3142,142.27,142.24,5.02]
[1728147432888,10.8,142.26,142.24,5.02]
[1728147433096,10.8,142.25,142.22,5.02]
[1728147433403,10.8,142.23,142.22,5.02]
[1728147433597,10.8,142.23,142.21,3.5157]
[1728147433913,10.8,142.24,142.21,8.5357]
[1728147434202,3.5155,142.22,142.21,5.02]
[1728147434402,6.10541675,142.29,142.21,5.02]
[1728147434591,10.8,142.24,142.21,5.02]
[1728147435196,14.315,142.24,142.21,5.02]
[1728147435396,10.8,142.26,142.21,5.02]
[1728147435701,3.5143,142.27,142.23,3.515]
[1728147435906,10.8,142.28,142.24,5.02]
[1728147436393,10.8,142.27,142.24,5.02]
[1728147438104,14.3142,142.27,142.24,5.02]
[1728147438602,10.8,142.27,142.24,8.5349]
[1728147439402,14.3143,142.27,142.24,5.02]
[1728147441913,6.1587,142.29,142.25,3.5145]
[1728147442100,10.8,142.27,142.24,5.02]
[1728147442296,2.6449,142.29,142.24,5.02]
[1728147442497,10.8,142.27,142.24,8.5349]
[1728147443412,10.8,142.26,142.24,5.02]
[1728147444615,3.5147,142.25,142.24,5.02]
[1728147444907,10.8,142.26,142.24,5.02]
[1728147445303,14.3146,142.26,142.24,5.02]
[1728147446003,10.8,142.26,142.24,5.02]
[1728147448513,3.5144,142.27,142.24,5.02]
[1728147448813,14.3144,142.27,142.24,5.02]
[1728147450211,14.3144,142.27,142.23,3.5152]
[1728147450412,14.3144,142.27,142.24,5.02]
[1728147452911,3.5145,142.26,142.24,5.02]
[1728147457131,3.5147,142.25,142.24,5.02]
[1728147457330,10.8,142.26,142.24,5.02]
[1728147457731,14.3145,142.26,142.24,5.02]
[1728147460434,10.8,142.26,142.24,5.02]
[1728147460826,14.3146,142.26,142.24,5.02]
[1728147461232,10.8,142.26,142.24,5.02]
[1728147461433,3.5147,142.25,142.24,5.02]
[1728147463537,14.3146,142.26,142.24,5.02]
[1728147463835,10.8,142.28,142.24,5.02]
[1728147464627,3.5144,142.27,142.24,5.02]
[1728147465336,3.5144,142.27,142.24,8.535]
[1728147467942,2.6449,142.29,142.26,3.5143]
[1728147468233,13.4449,142.29,142.24,15.82]
[1728147470137,13.4449,142.29,142.26,3.5143]
[1728147470138,16.9586,142.29,142.26,3.5143]
[1728147470330,6.1586,142.29,142.26,3.5143]
[1728147470647,13.4449,142.29,142.26,3.5143]
[1728147471837,16.9586,142.29,142.24,15.82]
[1728147472038,10.8,142.28,142.24,8.5348]
[1728147472343,14.314,142.28,142.24,8.5348]
[1728147472548,2.6449,142.29,142.24,5.02]
[1728147472735,10.8,142.28,142.24,5.02]
[1728147472936,14.314,142.28,142.24,5.02]
[1728147473933,14.314,142.28,142.25,3.5147]
[1728147478243,3.5144,142.27,142.24,8.5349]
[1728147478943,3.5144,142.27,142.24,5.02]
[1728147479349,10.8,142.28,142.24,5.02]
[1728147480449,3.5145,142.26,142.24,5.02]
[1728147480750,10.8,142.28,142.24,5.02]
[1728147480942,3.5143,142.27,142.24,5.02]
[1728147482350,10.8,142.28,142.24,5.02]
[1728147482648,10.8,142.27,142.24,5.02]
[1728147483444,3.5146,142.26,142.24,5.02]
[1728147484356,3.5143,142.27,142.24,5.02]
[1728147484948,3.5143,142.27,142.24,8.5349]
[1728147485256,3.5141,142.28,142.24,8.5349]
[1728147485654,3.5142,142.27,142.24,8.5349]
[1728147485852,3.5142,142.27,142.24,5.02]
[1728147486353,13.4449,142.29,142.24,5.02]
[1728147486555,1.31,142.29,142.24,15.82]
[1728147486944,1.31,142.29,142.24,5.02]
[1728147487143,1.31,142.29,142.24,15.82]
[1728147487144,4.8238,142.29,142.24,15.82]
[1728147487352,1.31,142.29,142.24,15.82]
[1728147487554,1.31,142.29,142.26,3.5144]
[1728147488249,4.8238,142.29,142.25,3.5146]
[1728147488946,1.31,142.29,142.24,5.02]
[1728147489153,12.11,142.29,142.24,5.02]
[1728147490155,14.3141,142.28,142.24,8.5349]
[1728147491556,3.5147,142.25,142.24,5.02]
[1728147492647,10.8,142.26,142.24,5.02]
[1728147492848,14.3145,142.26,142.24,5.02]
[1728147493860,10.8,142.26,142.24,5.02]
[1728147494162,10.8,142.26,142.19,87.22665893]
[1728147494458,10.8,142.25,142.21,3.5156]
[1728147494758,10.8,142.25,142.21,4.94]
[1728147495263,3.5151,142.24,142.21,4.94]
[1728147496755,10.8,142.25,142.21,4.94]
[1728147496962,10.8,142.24,142.2,4.94]
[1728147497554,10.8,142.23,142.2,4.94]
[1728147498056,3.5155,142.22,142.2,4.94]
[1728147499058,3.5159,142.21,142.19,0.12502]
[1728147499261,14.3159,142.21,142.19,5.06502]
[1728147499462,14.3159,142.21,142.19,0.12502]
[1728147502064,3.5159,142.2,142.19,0.12502]
[1728147505672,3.5155,142.22,142.19,3.64122]
[1728147507267,4.1844,142.24,142.19,3.64122]
[1728147507465,3.5153,142.23,142.19,10.92502]
[1728147507774,3.5153,142.23,142.2,3.5159]
[1728147507972,3.5153,142.23,142.19,10.92502]
[1728147508472,3.5153,142.23,142.19,14.44112]
[1728147509571,3.5153,142.23,142.19,3.64112]
[1728147509772,14.3153,142.23,142.19,3.64112]
[1728147510567,3.5155,142.22,142.19,3.64112]
[1728147510773,3.5155,142.22,142.19,0.12502]
[1728147517881,3.5155,142.22,142.19,5.10502]
[1728147520088,10.8,142.23,142.19,5.10502]
[1728147520289,3.5158,142.21,142.19,5.10502]
[1728147520795,14.3156,142.22,142.19,5.10502]
[1728147523982,10.8,142.22,142.19,5.10502]
[1728147524289,14.3159,142.2,142.19,5.10502]
[1728147526989,14.3159,142.2,142.19,0.12502]
[1728147529497,10.8,142.2,142.13,0.12502]
[1728147529702,3.5166,142.18,142.14,8.4974]
[1728147529883,10.8,142.19,142.14,4.98]
[1728147530496,10.8,142.19,142.13,10.92502]
[1728147530497,9.1644,142.24,142.15,4.98]
[1728147530702,10.8,142.2,142.15,15.78]
[1728147531395,3.5163,142.19,142.15,19.2972]
[1728147531996,3.5164,142.18,142.15,19.2972]
[1728147534199,3.5164,142.18,142.15,15.78]
[1728147535806,3.5163,142.19,142.15,15.78]
[1728147536006,10.8,142.2,142.15,15.78]
[1728147536504,3.5167,142.18,142.15,15.78]
[1728147537709,3.5167,142.18,142.15,4.98]
[1728147539205,10.8,142.2,142.15,4.98]
[1728147539410,3.5168,142.17,142.15,4.98]
[1728147541711,3.5169,142.16,142.15,4.98]
[1728147542509,3.5169,142.17,142.15,4.98]
[1728147543114,1.4386,142.24,142.16,10.8]
[1728147543307,1.4386,142.24,142.18,10.8]
[1728147543308,12.2386,142.24,142.18,10.8]
[1728147543510,12.2386,142.24,142.19,4.98]
[1728147544011,3.5154,142.23,142.19,8.496]
[1728147544906,14.3154,142.23,142.19,8.496]
[1728147550722,3.5155,142.22,142.19,8.496]
[1728147550923,3.5155,142.22,142.19,4.98]
[1728147552225,3.5159,142.2,142.19,4.98]
[1728147552540,10.8,142.2,142.13,0.12502]
[1728147552737,10.8,142.18,142.14,4.98]
[1728147553235,10.8,142.17,142.13,0.12502]
[1728147553421,10.8,142.16,142.13,0.12502]
[1728147553631,1.3584,142.2,142.14,4.98]
[1728147553837,4.8953,142.19,142.13,19.42252]
[1728147554039,1.3789,142.19,142.15,10.8]
[1728147554240,1.3789,142.19,142.16,4.98]
[1728147555144,3.5165,142.18,142.16,4.98]
[1728147555343,1.3789,142.19,142.16,4.98]
[1728147555740,4.8952,142.19,142.16,4.98]
[1728147556142,1.3789,142.19,142.16,4.98]
[1728147556551,3.5165,142.18,142.16,4.98]
[1728147558049,4.8951,142.19,142.16,4.98]
[1728147558239,1.3789,142.19,142.16,4.98]
[1728147558650,12.1584,142.2,142.16,4.98]
[1728147558651,10.8,142.2,142.16,4.98]
[1728147559044,14.316,142.2,142.16,4.98]
[1728147559641,1.3434,142.21,142.16,15.78]
[1728147559845,12.1434,142.21,142.16,19.2969]
[1728147560863,3.5161,142.2,142.16,15.78]
[1728147562053,10.8,142.22,142.17,10.8]
[1728147564161,3.5159,142.21,142.17,10.8]
[1728147568569,10.8,142.22,142.16,19.2968]
[1728147568769,3.516,142.2,142.16,19.2968]
[1728147572066,3.516,142.2,142.16,14.3168]
[1728147572266,3.516,142.2,142.17,4.98]
[1728147573965,10.8,142.22,142.17,4.98]
[1728147574163,3.5158,142.21,142.17,8.4966]
[1728147576369,3.516,142.2,142.17,8.4966]
[1728147576571,3.516,142.2,142.17,4.98]
[1728147578472,10.8,142.22,142.17,4.98]
[1728147579269,3.5161,142.2,142.17,4.98]
[1728147582373,3.5167,142.18,142.14,17.65214912]
[1728147582580,3.5167,142.18,142.15,4.96]
[1728147582778,10.8,142.2,142.15,4.96]
[1728147583079,3.5163,142.19,142.15,8.477]
[1728147583287,3.5163,142.19,142.15,4.96]
[1728147583474,10.8,142.2,142.15,4.96]
[1728147584195,3.5166,142.18,142.15,4.96]
[1728147584484,3.5166,142.18,142.15,8.4772]
[1728147584876,3.5163,142.19,142.15,8.4772]
[1728147587087,10.8,142.19,142.14,10.8]
[1728147587286,10.8,142.19,142.16,4.96]
[1728147588374,3.5166,142.18,142.16,4.96]
[1728147589081,3.5167,142.17,142.16,4.96]
[1728147589479,4.0783,142.24,142.16,4.96]
[1728147589678,3.5166,142.18,142.16,4.96]
[1728147590286,3.5166,142.18,142.14,14.3173]
[1728147590579,3.5166,142.18,142.15,4.96]
[1728147591277,10.8,142.2,142.15,8.4772]
[1728147591786,3.5164,142.19,142.15,8.4772]
[1728147592281,4.0783,142.24,142.15,4.96]
[1728147592471,3.5161,142.2,142.16,14.3167]
[1728147593485,14.3158,142.21,142.17,3.5166]
[1728147593686,3.5158,142.21,142.17,3.5166]
[1728147593875,4.0783,142.24,142.18,4.96]
[1728147594081,3.5156,142.22,142.18,19.2763]
[1728147596091,3.5158,142.21,142.18,15.76]
[1728147599482,3.5158,142.21,142.18,19.2764]
[1728147599780,10.8,142.22,142.13,0.12502]
[1728147599781,3.5171,142.16,142.13,0.12502]
[1728147599993,10.8,142.19,142.13,0.12502]
[1728147600285,3.5168,142.17,142.13,0.12502]
[1728147600685,4.0783,142.24,142.16,10.8]
[1728147600988,10.8,142.2,142.17,4.96]
[1728147601286,10.8,142.19,142.14,6.2699]
[1728147601491,10.8,142.19,142.14,4.96]
[1728147601695,10.8,142.19,142.13,15.88502]
[1728147602085,10.8,142.18,142.13,0.12502]
[1728147603195,3.5174,142.15,142.13,0.12502]
[1728147603392,10.8,142.18,142.13,0.12502]
[1728147603585,3.5166,142.18,142.13,0.12502]
[1728147603891,10.8,142.19,142.13,0.12502]
[1728147604080,3.5169,142.17,142.13,0.12502]
[1728147605394,3.5169,142.17,142.13,3.64262]
[1728147606289,10.8,142.19,142.13,0.12502]
[1728147606788,3.5169,142.17,142.13,10.92502]
[1728147606989,10.8,142.18,142.13,10.92502]
[1728147607386,3.5171,142.16,142.13,10.92502]
[1728147607804,3.5167,142.17,142.13,10.92502]
[1728147608098,10.8,142.18,142.13,10.92502]
[1728147608687,3.5171,142.16,142.13,10.92502]
[1728147609395,10.8,142.18,142.13,10.92502]
[1728147609597,3.5168,142.17,142.13,14.44262]
[1728147610197,3.5167,142.17,142.13,14.44262]
[1728147611690,14.316,142.2,142.16,3.5169]
[1728147611891,10.8,142.2,142.15,5.1]
[1728147613095,3.5164,142.19,142.15,8.617]
[1728147614899,1.3339,142.23,142.17,10.8]
[1728147615092,1.3339,142.23,142.18,10.8]
[1728147615401,1.3339,142.23,142.18,15.9]
[1728147615599,3.5155,142.22,142.18,19.4163]
[1728147616192,3.5155,142.22,142.19,3.5162]
[1728147617901,3.5155,142.22,142.18,19.4163]
[1728147618405,10.8,142.21,142.17,5.1]
[1728147620008,3.5162,142.2,142.17,5.1]
[1728147621390,14.3155,142.22,142.18,3.5163]
[1728147622201,3.5157,142.21,142.17,19.4166]
[1728147624489,3.5157,142.21,142.18,3.5164]
[1728147626210,3.5155,142.22,142.18,14.3164]
[1728147626703,3.63982,142.25,142.21,3.5156]
[1728147626906,3.63982,142.25,142.21,10.8]
[1728147627106,3.63982,142.25,142.22,10.8]
[1728147631602,3.5155,142.22,142.21,5.1]
[1728147633402,0.12502,142.25,142.21,5.1]
[1728147633611,3.63992,142.25,142.21,5.1]
[1728147633910,3.63992,142.25,142.21,8.6156]
[1728147641216,3.63992,142.25,142.21,19.4156]
[1728147643809,3.63992,142.25,142.24,10.8]
[1728147643810,0.12502,142.25,142.24,10.8]
[1728147644015,0.12502,142.25,142.24,19.375]
[1728147646009,0.12502,142.25,142.24,15.86]
[1728147652526,0.12502,142.25,142.24,19.375]
[1728147652723,0.12502,142.25,142.24,15.86]
[1728147661936,0.12502,142.25,142.24,19.375]
[1728147664933,0.12502,142.25,142.24,15.86]
[1728147665123,0.12502,142.25,142.24,5.06]
[1728147665526,3.63972,142.25,142.24,5.06]
[1728147666227,3.63972,142.25,142.21,3.5156]
[1728147666431,3.5155,142.22,142.17,77.2801]
[1728147666827,3.5155,142.22,142.19,10.8]
[1728147667029,10.92502,142.25,142.19,10.8]
[1728147667230,3.5153,142.23,142.19,3.516]
[1728147667430,3.5153,142.23,142.2,10.8]
[1728147667639,3.5153,142.23,142.21,5.02]
[1728147668337,3.5155,142.22,142.21,5.02]
[1728147668539,10.8,142.23,142.17,77.2801]
[1728147668741,10.8,142.23,142.18,15.82]
[1728147668934,3.5161,142.2,142.18,15.82]
[1728147669832,3.5158,142.21,142.18,19.3364]
[1728147670036,10.8,142.23,142.19,10.8]
[1728147670346,1.3432,142.24,142.19,10.8]
[1728147670638,4.8583,142.24,142.2,14.3159]
[1728147670839,3.5151,142.24,142.21,5.02]
[1728147672340,3.5155,142.22,142.21,5.02]
[1728147675237,12.2021,142.24,142.21,5.02]
[1728147675540,3.5153,142.23,142.21,5.02]
[1728147675844,1.4021,142.24,142.21,5.02]
[1728147676043,0.12502,142.25,142.21,15.82]
[1728147677041,3.63982,142.25,142.21,19.3356]
[1728147677443,0.12502,142.25,142.21,19.3356]
[1728147678038,0.12502,142.25,142.22,3.5153]
[1728147678243,0.12502,142.25,142.23,10.8]
[1728147678444,0.12502,142.25,142.24,5.02]
[1728147678939,0.12502,142.25,142.24,19.335]
[1728147679537,3.63832,142.31,142.24,15.82]
[1728147679739,3.63832,142.31,142.27,10.8]
[1728147679934,3.63832,142.31,142.27,15.82]
[1728147680648,0.12502,142.31,142.27,15.82]
[1728147680947,3.5135,142.3,142.27,15.82]
[1728147681545,10.92502,142.31,142.27,5.02]
[1728147681749,3.5139,142.29,142.27,5.02]
[1728147681951,10.92502,142.31,142.27,5.02]
[1728147682437,3.514,142.28,142.27,5.02]
[1728147683742,3.5142,142.27,142.23,14.3151]
[1728147683943,3.5142,142.27,142.24,5.02]
[1728147684151,10.8,142.28,142.21,3.5155]
[1728147684448,10.8,142.26,142.21,10.8]
[1728147684651,10.8,142.26,142.22,5.02]
[1728147685149,3.5149,142.25,142.22,5.02]
[1728147685952,14.3145,142.26,142.22,5.02]
[1728147686151,3.5145,142.26,142.22,15.82]
[1728147686645,3.5145,142.26,142.22,19.3354]
[1728147690455,3.514,142.28,142.25,14.3147]
[1728147690756,13.5305,142.3,142.25,15.82]
[1728147691759,10.8,142.29,142.25,5.02]
[1728147692145,14.3141,142.28,142.25,5.02]
[1728147692452,10.8,142.28,142.24,5.02]
[1728147693262,3.5143,142.27,142.24,5.02]
[1728147694262,3.514,142.28,142.24,19.3348]
[1728147694557,0.12502,142.31,142.27,10.8]
[1728147694951,3.5136,142.3,142.27,10.8]
[1728147695352,3.5136,142.3,142.27,15.82]
[1728147695951,0.12502,142.31,142.29,10.8]
[1728147696859,0.12502,142.31,142.29,14.3137]
[1728147697263,0.12502,142.31,142.3,19.3335]
[1728147709574,3.63702,142.37,142.34,14.3123]
[1728147709767,3.63702,142.37,142.35,5.02]
[1728147710869,3.512,142.36,142.35,5.02]
[1728147716563,10.92502,142.37,142.35,5.02]
[1728147716769,14.43692,142.37,142.35,5.02]
[1728147718864,14.43692,142.37,142.34,19.3325]
[1728147719064,3.63692,142.37,142.34,19.3325]
[1728147719375,0.12502,142.37,142.35,3.5122]
[1728147719766,0.12502,142.37,142.34,15.82]
[1728147719965,0.12502,142.37,142.34,19.3324]
[1728147720577,10.92502,142.37,142.28,2.8121]
[1728147720767,10.8,142.35,142.28,2.8121]
[1728147721080,10.8,142.32,142.28,5.02]
[1728147721264,10.8,142.32,142.28,8.534]
[1728147721876,14.3131,142.32,142.28,15.82]
[1728147722171,10.8,142.34,142.29,3.5137]
[1728147722379,3.5129,142.33,142.29,3.5137]
[1728147723577,3.5129,142.33,142.29,14.3137]
[1728147726880,3.5123,142.35,142.31,10.8]
[1728147727063,10.8,142.36,142.32,15.84]
[1728147727263,10.8,142.36,142.33,5.04]
[1728147727579,10.92502,142.37,142.33,5.04]
[1728147727879,3.63682,142.37,142.33,19.3526]
[1728147728674,0.12502,142.37,142.35,14.3121]
[1728147728878,0.12502,142.37,142.36,5.04]
[1728147729271,3.5125,142.34,142.3,3.5134]
[1728147729579,3.5125,142.34,142.31,5.04]
[1728147731075,3.5129,142.33,142.31,5.04]
[1728147734383,3.513,142.32,142.31,5.04]
[1728147735182,16.87,142.35,142.25,1.51952]
[1728147735379,3.5137,142.29,142.26,3.5143]
[1728147735677,16.87,142.31,142.25,0.12502]
[1728147736078,3.5142,142.28,142.25,0.12502]
[1728147738973,3.5144,142.27,142.25,0.12502]
[1728147740782,5.04,142.3,142.25,0.12502]
[1728147740990,3.514,142.28,142.25,3.63972]
[1728147741187,16.87,142.31,142.25,3.63972]
[1728147741691,3.5139,142.29,142.25,3.63972]
[1728147743683,21.91,142.33,142.25,3.63972]
[1728147743684,3.5136,142.3,142.26,3.5144]
[1728147744078,3.5137,142.29,142.25,3.63972]
[1728147744385,16.87,142.31,142.25,0.12502]
[1728147745284,3.5141,142.28,142.25,0.12502]
[1728147746386,3.5142,142.28,142.25,0.12502]
[1728147749194,3.5145,142.27,142.25,0.12502]
[1728147749398,1.3304,142.3,142.25,0.12502]
[1728147749887,3.5144,142.27,142.25,0.12502]
[1728147750587,3.5145,142.26,142.25,0.12502]
[1728147750787,16.87,142.27,142.19,0.12502]
[1728147750982,16.87,142.24,142.19,0.12502]
[1728147751692,16.87,142.24,142.19,3.64112]
[1728147752098,16.87,142.24,142.19,0.12502]
[1728147752594,16.87,142.22,142.19,0.12502]
[1728147752787,3.5159,142.2,142.19,0.12502]
[1728147757493,3.5174,142.14,142.13,0.12502]
[1728147761293,1.4517,142.16,142.13,0.12502]
[1728147761903,3.5174,142.15,142.13,0.12502]
[1728147762692,1.4517,142.16,142.13,0.12502]
[1728147762901,4.9687,142.16,142.13,0.12502]
[1728147764299,16.87,142.21,142.13,0.12502]
[1728147764599,5.16,142.2,142.13,0.12502]
[1728147764900,2.7428,142.23,142.14,5.16]
[1728147765093,24.7728,142.23,142.14,5.16]
[1728147765488,3.5164,142.19,142.14,8.6772]